bitfinex/quotes_BTCUSD_20251217
["timestamp","ask_amount","ask_price","bid_price","bid_amount"]
[1765956863789,0.22970551,87068.0,87067.0,0.01835296]
[1765956863954,0.23823551,87068.0,87067.0,0.01835296]
[1765956864157,0.24661551,87068.0,87067.0,0.01835296]
[1765956864858,0.24661551,87068.0,87067.0,0.00011296]
[1765956866275,0.23823551,87068.0,87067.0,0.00011296]
[1765956866532,0.01148501,87070.0,87067.0,0.00011296]
[1765956867576,0.01248501,87070.0,87067.0,0.01159836]
[1765956867772,0.01248501,87070.0,87067.0,0.00011296]
[1765956867973,0.00877942,87068.0,87067.0,0.00011296]
[1765956868283,0.00081942,87068.0,87067.0,0.00011296]
[1765956870356,0.00081942,87068.0,87067.0,0.25357398]
[1765956870557,0.0002,87094.0,87067.0,0.25357398]
[1765956870558,0.0002,87094.0,87084.0,0.25809429]
[1765956870559,0.0114825,87089.0,87084.0,0.25809429]
[1765956870713,0.24112155,87093.0,87088.0,0.01148263]
[1765956870913,0.00835,87090.0,87089.0,0.0114825]
[1765956871236,0.0002,87094.0,87093.0,0.22963958]
[1765956871594,0.0002,87094.0,87093.0,0.25177958]
[1765956871795,0.0002,87094.0,87093.0,0.28754245]
[1765956872016,0.0002,87094.0,87093.0,0.25339245]
[1765956872404,0.0002,87094.0,87093.0,0.40264245]
[1765956873026,0.0002,87094.0,87093.0,0.28754245]
[1765956873225,0.0002,87094.0,87093.0,0.40264245]
[1765956873431,0.0012,87094.0,87093.0,0.40264245]
[1765956873677,0.0012,87094.0,87093.0,0.34635245]
[1765956873857,0.0002,87094.0,87093.0,0.36659245]
[1765956874212,0.0002,87094.0,87093.0,0.25149245]
[1765956874419,0.0002,87094.0,87093.0,0.25249245]
[1765956874775,0.0002,87094.0,87093.0,0.24949245]
[1765956874977,0.0002,87094.0,87093.0,0.25149245]
[1765956876723,0.00773,87094.0,87093.0,0.02024]
[1765956877088,0.01607904,87094.0,87093.0,0.02024]
[1765956877965,0.01607904,87094.0,87093.0,0.01824]
[1765956878130,0.01607904,87094.0,87093.0,0.01924]
[1765956879421,0.00854904,87094.0,87093.0,0.01924]
[1765956879875,0.00101904,87094.0,87093.0,0.01924]
[1765956880105,0.00101904,87094.0,87093.0,0.07798]
[1765956880279,0.00101904,87094.0,87093.0,0.20847124]
[1765956880575,0.00101904,87094.0,87093.0,0.19469287]
[1765956880779,0.00101904,87094.0,87093.0,0.07959287]
[1765956881078,0.00101904,87094.0,87093.0,0.19369287]
[1765956881284,0.00101904,87094.0,87093.0,0.19569287]
[1765956881460,0.00101904,87094.0,87093.0,0.19669287]
[1765956882481,0.00101904,87094.0,87093.0,0.19469287]
[1765956882686,0.00101904,87094.0,87093.0,0.49817124]
[1765956883013,0.00101904,87094.0,87093.0,0.48639287]
[1765956883212,0.00101904,87094.0,87093.0,0.53641126]
[1765956883412,0.00101904,87094.0,87093.0,0.53441126]
[1765956883820,0.00101904,87094.0,87093.0,0.53641126]
[1765956884402,0.00101904,87094.0,87093.0,0.57735939]
[1765956884712,0.00101904,87094.0,87093.0,0.67890826]
[1765956885071,0.0002,87102.0,87101.0,0.90987687]
[1765956885274,0.22951521,87141.0,87101.0,0.90987687]
[1765956885275,0.39792911,87134.0,87133.0,0.22953416]
[1765956885453,0.39792911,87134.0,87133.0,0.45207477]
[1765956886247,0.39830581,87134.0,87133.0,0.45207477]
[1765956887138,0.39830581,87134.0,87133.0,0.44242703]
[1765956887731,0.39830581,87134.0,87133.0,0.003]
[1765956887907,0.39830581,87134.0,87133.0,0.02124]
[1765956888544,0.41225581,87134.0,87133.0,0.01924]
[1765956888749,0.41225581,87134.0,87133.0,0.02124]
[1765956888958,0.39830581,87134.0,87133.0,0.02124]
[1765956889105,0.39830581,87134.0,87133.0,0.01824]
[1765956889310,0.39830581,87134.0,87133.0,0.01924]
[1765956889712,0.39830581,87134.0,87133.0,0.01824]
[1765956890576,0.41197581,87134.0,87133.0,0.01924]
[1765956890875,0.41197581,87134.0,87133.0,0.001]
[1765956890876,0.42564581,87134.0,87133.0,0.001]
[1765956891271,0.39830581,87134.0,87133.0,0.05974]
[1765956891412,0.39830581,87134.0,87133.0,0.28927416]
[1765956891629,0.39830581,87134.0,87133.0,0.40598703]
[1765956892079,0.39830581,87134.0,87133.0,0.02549287]
[1765956892237,0.39830581,87134.0,87133.0,0.00161287]
[1765956892438,0.39830581,87134.0,87133.0,0.00261287]
[1765956892853,0.62783733,87134.0,87133.0,0.00261287]
[1765956893078,0.62783733,87134.0,87133.0,0.00161287]
[1765956893463,0.62783733,87134.0,87127.0,0.1151]
[1765956893464,0.22954733,87128.0,87127.0,0.1151]
[1765956893725,0.01147723,87129.0,87127.0,0.01824]
[1765956893865,0.24280733,87128.0,87127.0,0.01824]
[1765956894069,0.25606733,87128.0,87127.0,0.01824]
[1765956894503,0.25606733,87128.0,87101.0,0.34572888]
[1765956894504,0.01147907,87115.0,87101.0,0.34572888]
[1765956894702,0.01147907,87115.0,87109.0,0.01824]
[1765956894703,0.22959493,87110.0,87109.0,0.01824]
[1765956895042,0.24939142,87112.0,87111.0,0.11507684]
[1765956895043,0.01979947,87112.0,87111.0,0.11507684]
[1765956895691,0.01147881,87117.0,87110.0,0.24107449]
[1765956895857,0.01147921,87114.0,87111.0,0.0114796]
[1765956896318,0.00056683,87112.0,87111.0,0.0114796]
[1765956896532,0.00056683,87112.0,87109.0,0.13331684]
[1765956896737,0.00804,87110.0,87109.0,0.01824]
[1765956896951,0.02094,87110.0,87109.0,0.01824]
[1765956897214,0.00804,87110.0,87109.0,0.01824]
[1765956897871,0.02081,87110.0,87109.0,0.01824]
[1765956898082,0.02081,87110.0,87109.0,0.01924]
[1765956898489,0.00804,87110.0,87109.0,0.01924]
[1765956898711,0.01147855,87119.0,87116.0,0.01147894]
[1765956898938,0.01147868,87118.0,87114.0,0.3628607]
[1765956899107,0.24105512,87117.0,87114.0,0.14475605]
[1765956899347,0.01147881,87117.0,87114.0,0.14475605]
[1765956899885,0.01147881,87117.0,87114.0,0.12655605]
[1765956900504,0.01147828,87121.0,87114.0,0.37533778]
[1765956900706,0.22956516,87122.0,87115.0,0.22958119]
[1765956900707,0.01147815,87122.0,87115.0,0.22958119]
[1765956901133,0.24104352,87122.0,87116.0,0.2295769]
[1765956901362,0.01147815,87122.0,87119.0,0.01147855]
[1765956901618,0.01147815,87122.0,87120.0,0.01824]
[1765956902066,0.22956577,87121.0,87120.0,0.01824]
[1765956902264,0.00085016,87121.0,87120.0,0.01824]
[1765956903082,0.00085016,87121.0,87114.0,0.0182]
[1765956903083,0.01904,87107.0,87090.0,0.04190649]
[1765956903283,0.01904,87107.0,87092.0,0.01148211]
[1765956903284,0.24111374,87096.0,87092.0,0.01148211]
[1765956903652,0.22961849,87101.0,87096.0,0.01148158]
[1765956903653,0.01148105,87100.0,87096.0,0.01148158]
[1765956903882,0.01148105,87100.0,87090.0,0.11507684]
[1765956903884,0.01148079,87102.0,87075.0,0.24116988]
[1765956903885,0.24600175,87083.0,87075.0,0.24116988]
[1765956904043,0.24600175,87083.0,87080.0,0.01148369]
[1765956904044,0.00485,87083.0,87080.0,0.01148369]
[1765956904521,0.00485,87083.0,87080.0,0.24115618]
[1765956904726,0.01148303,87085.0,87082.0,0.01148342]
[1765956904923,0.01148316,87084.0,87081.0,0.01148356]
[1765956905127,0.24114068,87087.0,87081.0,0.01148356]
[1765956905296,0.00471,87088.0,87085.0,0.01148303]
[1765956905491,0.00471,87088.0,87086.0,0.11507684]
[1765956905720,0.00709,87107.0,87097.0,0.24110929]
[1765956905913,0.01868307,87107.0,87104.0,0.01148052]
[1765956906112,0.01148026,87106.0,87103.0,0.01148066]
[1765956906322,0.00720294,87107.0,87104.0,0.01148052]
[1765956906723,0.00720294,87107.0,87105.0,0.22960622]
[1765956906925,0.00720294,87107.0,87106.0,0.46474971]
[1765956906926,0.00011294,87107.0,87106.0,0.46474971]
[1765956907100,2.94e-06,87107.0,87106.0,0.46474971]
[1765956907304,2.94e-06,87107.0,87106.0,0.17404971]
[1765956907554,2.94e-06,87107.0,87106.0,0.29020188]
[1765956907980,2.94e-06,87107.0,87106.0,0.29120188]
[1765956908181,0.01147828,87121.0,87116.0,0.01147894]
[1765956908395,0.01147828,87121.0,87119.0,0.22957104]
[1765956908396,0.00037639,87121.0,87119.0,0.22957104]
[1765956908592,0.00037639,87121.0,87120.0,0.01824]
[1765956908820,0.00122655,87121.0,87120.0,0.0756]
[1765956909034,0.00122655,87121.0,87120.0,0.19067684]
[1765956909235,0.00122655,87121.0,87120.0,0.19228971]
[1765956910058,0.00122655,87121.0,87120.0,0.07721287]
[1765956910270,0.00122655,87121.0,87120.0,0.09298697]
[1765956910520,0.00122655,87121.0,87120.0,0.17812504]
[1765956910737,0.00122655,87121.0,87120.0,0.30697598]
[1765956911086,0.00122655,87121.0,87120.0,0.51884343]
[1765956911290,0.05,87152.0,87120.0,0.51884343]
[1765956911291,0.05,87152.0,87151.0,0.45579523]
[1765956911292,6.9e-07,87152.0,87151.0,0.45579523]
[1765956911499,6.9e-07,87152.0,87151.0,0.70517485]
[1765956911731,0.00011358,87152.0,87151.0,0.70517485]
[1765956911937,0.00011358,87152.0,87151.0,2.33606717]
[1765956912159,0.00011358,87152.0,87151.0,0.93740417]
[1765956912371,0.02971881,87193.0,87151.0,0.93740417]
[1765956912374,0.03087803,87237.0,87218.0,0.11507684]
[1765956912600,0.00786974,87240.0,87183.0,0.1212]
[1765956912601,0.00786974,87240.0,87239.0,0.22925526]
[1765956912602,0.06683974,87240.0,87239.0,0.22925526]
[1765956912792,0.06683974,87240.0,87234.0,0.01146342]
[1765956912793,0.06683974,87240.0,87221.0,0.01836]
[1765956912794,0.07722,87222.0,87221.0,0.01836]
[1765956913223,0.07722,87222.0,87200.0,0.00099999]
[1765956913224,0.07722,87212.0,87200.0,0.00099999]
[1765956913420,0.07722,87212.0,87211.0,0.01659716]
[1765956913870,0.59724623,87212.0,87211.0,0.01659716]
[1765956914060,0.59724623,87212.0,87194.0,0.22937144]
[1765956914061,0.59724623,87212.0,87194.0,0.01146867]
[1765956914062,0.0355,87201.0,87194.0,0.01146867]
[1765956914257,0.05897,87195.0,87192.0,0.01146894]
[1765956914460,0.05897,87195.0,87188.0,0.01146946]
[1765956914461,0.01825,87188.0,87187.0,0.01146959]
[1765956914675,0.05375,87188.0,87186.0,0.01146973]
[1765956914883,0.0355,87187.0,87186.0,0.24086435]
[1765956915102,0.01825,87195.0,87194.0,0.22937358]
[1765956915334,0.05897,87210.0,87209.0,0.0114667]
[1765956915532,0.29332615,87220.0,87209.0,0.0114667]
[1765956915533,0.29332615,87220.0,87217.0,0.01146565]
[1765956915534,0.0355,87220.0,87217.0,0.01146565]
[1765956915740,0.03587656,87220.0,87217.0,0.12654249]
[1765956915956,0.02384656,87220.0,87217.0,0.12654249]
[1765956916161,0.05897,87219.0,87218.0,0.22931046]
[1765956916405,0.05897,87218.0,87217.0,0.01146565]
[1765956916615,0.00037656,87220.0,87218.0,0.22931046]
[1765956917717,0.00037656,87220.0,87219.0,0.11507684]
[1765956917933,0.00137656,87220.0,87219.0,0.11668971]
[1765956918137,0.00448977,87220.0,87219.0,0.13044818]
[1765956918288,0.30119589,87240.0,87238.0,0.22925762]
[1765956918289,0.00786974,87240.0,87238.0,0.22925762]
[1765956918503,0.00786974,87240.0,87239.0,0.13044502]
[1765956918504,0.00798263,87240.0,87239.0,0.13044502]
[1765956918699,0.00798263,87240.0,87239.0,0.21414722]
[1765956918865,0.00798263,87240.0,87239.0,0.50484722]
[1765956919279,0.0001289,87253.0,87239.0,0.50484722]
[1765956919280,0.0001289,87253.0,87252.0,0.11507684]
[1765956919654,0.0001289,87253.0,87252.0,0.13508971]
[1765956919940,0.01825,87251.0,87248.0,0.01146158]
[1765956920110,0.05897,87249.0,87248.0,0.12653842]
[1765956920333,0.0001289,87253.0,87250.0,0.01146131]
[1765956920540,0.0001289,87253.0,87242.0,0.01146236]
[1765956920542,0.02347,87243.0,87242.0,0.01146236]
[1765956920692,0.02347,87243.0,87200.0,0.001]
[1765956920693,0.24748151,87249.0,87224.0,0.11507684]
[1765956920694,0.01825,87226.0,87224.0,0.11507684]
[1765956920902,0.01825,87226.0,87224.0,0.00037656]
[1765956920903,0.05897,87225.0,87224.0,0.00037656]
[1765956921328,0.05897,87225.0,87220.0,0.00099999]
[1765956921329,0.05897,87221.0,87220.0,0.00099999]
[1765956921546,0.05897,87221.0,87204.0,0.1265442]
[1765956921547,0.22934464,87205.0,87204.0,0.11507684]
[1765956921778,0.22934464,87205.0,87200.0,0.00099999]
[1765956921779,0.01146749,87203.0,87200.0,0.11507684]
[1765956922182,0.01146815,87198.0,87192.0,0.11507684]
[1765956922390,0.24084179,87195.0,87192.0,0.11507684]
[1765956922590,0.01146762,87202.0,87196.0,0.01146841]
[1765956922817,0.0355,87202.0,87199.0,0.24082637]
[1765956923028,0.01146644,87211.0,87194.0,0.10892618]
[1765956923029,0.0355,87212.0,87208.0,0.01146683]
[1765956923226,1.1459429,87265.0,87219.0,0.11507684]
[1765956923227,0.0114646,87225.0,87219.0,0.11507684]
[1765956923511,0.29332615,87240.0,87220.0,0.2293052]
[1765956923512,0.01146368,87232.0,87220.0,0.2293052]
[1765956923713,0.01146499,87222.0,87219.0,0.11507684]
[1765956923945,0.01146578,87216.0,87212.0,0.01146631]
[1765956924139,0.01146578,87216.0,87165.0,0.03055347]
[1765956924140,0.22930217,87222.0,87200.0,0.00099999]
[1765956924141,0.01146683,87208.0,87200.0,0.00099999]
[1765956924346,0.29332615,87222.0,87192.0,0.001]
[1765956924348,0.02347,87193.0,87192.0,0.001]
[1765956924508,0.28834621,87193.0,87192.0,0.001]
[1765956924705,0.0355,87202.0,87195.0,0.01146854]
[1765956924901,0.29332615,87210.0,87195.0,0.01146854]
[1765956924902,0.0355,87209.0,87206.0,0.0114671]
[1765956925160,0.01146657,87210.0,87200.0,0.00099999]
[1765956925161,0.05897,87201.0,87200.0,0.00099999]
[1765956925533,0.05897,87201.0,87200.0,0.00111288]
[1765956926059,0.53412626,87210.0,87200.0,0.00111288]
[1765956926060,0.04696657,87210.0,87205.0,0.11507684]
[1765956926258,0.22933977,87207.0,87206.0,0.01049371]
[1765956926707,0.25280977,87207.0,87206.0,0.01049371]
[1765956926910,0.05897,87207.0,87206.0,0.01049371]
[1765956927232,0.30655938,87207.0,87206.0,0.01049371]
[1765956927661,0.24079139,87213.0,87206.0,0.01049371]
[1765956927663,0.01146289,87238.0,87230.0,0.01146394]
[1765956927836,0.04696263,87240.0,87230.0,0.01146394]
[1765956927837,0.04696263,87240.0,87237.0,0.11507684]
[1765956927838,0.0355,87240.0,87237.0,0.11507684]
[1765956928083,0.01146184,87246.0,87237.0,0.11507684]
[1765956928084,0.01146171,87247.0,87243.0,0.01146223]
[1765956928233,0.24069493,87248.0,87245.0,0.01146197]
[1765956928234,0.01146158,87248.0,87245.0,0.01146197]
[1765956928435,0.01146158,87248.0,87244.0,0.02195581]
[1765956928436,0.01146158,87248.0,87240.0,0.00099999]
[1765956928437,0.01146118,87251.0,87220.0,0.00099999]
[1765956928438,0.01146368,87232.0,87220.0,0.00099999]
[1765956928683,0.24073156,87235.0,87220.0,0.00099999]
[1765956928684,0.01146355,87233.0,87228.0,0.0114642]
[1765956928817,0.00025141,87228.0,87222.0,0.12654183]
[1765956929032,0.01146618,87213.0,87210.0,0.0184]
[1765956929246,0.01146644,87211.0,87210.0,0.0184]
[1765956929441,0.01146644,87211.0,87206.0,0.11507684]
[1765956929442,0.0114667,87209.0,87206.0,0.11507684]
[1765956929648,0.0114667,87209.0,87207.0,0.0184]
[1765956929832,0.01146618,87213.0,87208.0,0.24080358]
[1765956930234,0.01825,87214.0,87211.0,0.01146644]
[1765956930646,0.24077488,87219.0,87216.0,0.01146578]
[1765956930647,0.01146539,87219.0,87216.0,0.01146578]
[1765956930778,0.01146578,87216.0,87213.0,0.01146618]
[1765956931176,0.0355,87216.0,87214.0,0.01146604]
[1765956931956,0.0355,87216.0,87214.0,0.2407861]
[1765956932187,0.0355,87216.0,87213.0,0.01146618]
[1765956932188,0.04696578,87216.0,87213.0,0.001]
[1765956932399,0.0355,87216.0,87213.0,0.001]
[1765956932595,0.01146578,87216.0,87214.0,0.001]
[1765956933195,0.01146578,87216.0,87214.0,0.002]
[1765956933400,0.26481835,87215.0,87214.0,0.002]
[1765956934017,0.26481835,87215.0,87214.0,0.001]
[1765956934418,0.01146552,87218.0,87214.0,0.01346604]
[1765956934694,0.22931572,87216.0,87215.0,0.11507684]
[1765956935303,0.02971512,87221.0,87215.0,0.11507684]
[1765956935527,0.02971512,87221.0,87218.0,0.01146552]
[1765956935733,0.02971512,87221.0,87210.0,0.0184]
[1765956935734,0.02971512,87221.0,87200.0,0.01246787]
[1765956935735,0.07083,87201.0,87200.0,0.01246787]
[1765956936003,0.01146696,87207.0,87204.0,0.01146736]
[1765956936229,0.01146736,87204.0,87200.0,0.01246787]
[1765956936433,0.01146736,87204.0,87200.0,0.00099999]
[1765956936434,0.2408184,87203.0,87200.0,0.00099999]
[1765956936637,0.2841784,87203.0,87200.0,0.00099999]
[1765956936836,0.2841784,87203.0,87200.0,0.00011289]
[1765956937015,0.2841784,87203.0,87200.0,0.01851289]
[1765956937215,0.06344364,87201.0,87200.0,0.01851289]
[1765956937517,0.06344364,87201.0,87200.0,0.00011289]
[1765956938167,0.04354,87201.0,87190.0,0.00099999]
[1765956938401,0.04354,87201.0,87172.0,0.01147157]
[1765956938402,0.02082,87179.0,87172.0,0.01147157]
[1765956938616,0.02082,87179.0,87176.0,0.01147104]
[1765956938833,0.01146999,87184.0,87180.0,0.01147052]
[1765956938834,0.01147012,87183.0,87180.0,0.01147052]
[1765956939043,0.01147012,87183.0,87179.0,0.01147065]
[1765956939282,0.01146999,87184.0,87181.0,0.12649923]
[1765956939493,0.25020259,87191.0,87187.0,0.01146959]
[1765956939697,0.01146907,87191.0,87190.0,0.11502885]
[1765956939927,0.02082,87198.0,87193.0,0.01146881]
[1765956940134,0.01146802,87199.0,87198.0,0.11502885]
[1765956940299,0.2293454,87205.0,87199.0,0.11502885]
[1765956940300,0.01146723,87205.0,87199.0,0.11502885]
[1765956940508,0.04354,87211.0,87200.0,0.23997815]
[1765956940509,0.0114667,87209.0,87200.0,0.23997815]
[1765956940686,0.01146696,87207.0,87200.0,0.02370111]
[1765956941050,0.01146696,87207.0,87202.0,0.01146762]
[1765956941195,0.01146696,87207.0,87204.0,0.01146736]
[1765956941399,0.2408013,87209.0,87205.0,0.02208759]
[1765956941598,0.22933938,87207.0,87206.0,0.01062036]
[1765956942035,0.01146683,87208.0,87206.0,0.01062036]
[1765956942226,0.01146683,87208.0,87207.0,0.01062036]
[1765956942612,0.0114667,87209.0,87207.0,0.01062036]
[1765956942809,0.01146631,87212.0,87208.0,0.25142334]
[1765956943032,0.03228618,87213.0,87210.0,0.01146657]
[1765956943237,3.11603138,87260.0,87217.0,0.11502885]
[1765956943238,0.01146526,87220.0,87217.0,0.11502885]
[1765956943465,0.01146526,87220.0,87218.0,0.12564921]
[1765956943466,0.01146539,87219.0,87218.0,0.12564921]
[1765956943672,0.22953794,87228.0,87218.0,0.12564921]
[1765956943673,0.22953794,87228.0,87222.0,0.01146499]
[1765956943674,0.01146447,87226.0,87222.0,0.01146499]
[1765956943875,0.01146447,87226.0,87212.0,0.09745751]
[1765956943876,0.01146447,87226.0,87225.0,0.11502885]
[1765956944079,0.22929206,87225.0,87224.0,0.11502885]
[1765956944282,0.22929206,87225.0,87224.0,0.01062188]
[1765956944969,0.22930777,87220.0,87218.0,0.11502885]
[1765956945166,0.01146512,87221.0,87219.0,0.01062267]
[1765956945395,0.01146512,87221.0,87220.0,0.01062267]
[1765956945596,0.01146473,87224.0,87220.0,0.01062267]
[1765956945872,0.01146473,87224.0,87221.0,0.02208779]
[1765956946098,0.23029206,87225.0,87221.0,0.02208779]
[1765956946099,0.001,87225.0,87222.0,0.02208766]
[1765956946303,0.01209163,87228.0,87225.0,0.0114646]
[1765956946304,0.00062743,87228.0,87225.0,0.0114646]
[1765956946491,0.00062743,87228.0,87226.0,0.23991138]
[1765956946750,0.00062743,87228.0,87227.0,0.01062267]
[1765956946967,0.32818564,87228.0,87227.0,0.01062267]
[1765956947149,0.3008216,87228.0,87227.0,0.01062267]
[1765956948155,0.2572816,87228.0,87227.0,0.01062267]
[1765956948398,0.2572816,87228.0,87227.0,0.01162267]
[1765956948629,0.3008216,87228.0,87227.0,0.01162267]
[1765956949087,0.2299116,87228.0,87227.0,0.01162267]
[1765956949289,0.00062743,87228.0,87227.0,0.01162267]
[1765956950816,0.03228368,87232.0,87227.0,0.01162267]
[1765956950817,0.01146394,87230.0,87227.0,0.01162267]
[1765956950989,0.22928154,87229.0,87228.0,0.01062267]
[1765956951871,0.30019154,87229.0,87228.0,0.01062267]
[1765956952504,0.30019154,87229.0,87228.0,2.67e-06]
[1765956953083,0.35750188,87229.0,87228.0,2.67e-06]
[1765956953319,0.30019154,87229.0,87228.0,2.67e-06]
[1765956953503,0.35750188,87229.0,87228.0,2.67e-06]
[1765956954068,0.01146618,87213.0,87210.0,0.01146657]
[1765956954226,0.24078314,87216.0,87211.0,0.01146644]
[1765956954403,0.24078314,87216.0,87213.0,0.11502885]
[1765956954942,0.22932098,87214.0,87213.0,0.11502885]
[1765956955485,0.01146604,87214.0,87210.0,0.24241026]
[1765956955688,0.01146618,87213.0,87210.0,0.01307944]
[1765956956127,0.01146604,87214.0,87210.0,0.01307944]
[1765956956646,0.01146618,87213.0,87210.0,0.01307944]
[1765956956790,0.01146604,87214.0,87211.0,0.01146644]
[1765956957011,0.04354,87212.0,87210.0,0.00161287]
[1765956957219,0.02082,87211.0,87210.0,0.00161287]
[1765956958032,0.02082,87211.0,87210.0,0.00261287]
[1765956958234,0.02082,87211.0,87210.0,0.23094436]
[1765956958442,0.03228552,87218.0,87212.0,0.24079]
[1765956958636,0.03228552,87218.0,87214.0,0.11502885]
[1765956958885,0.02082,87218.0,87215.0,0.22931614]
[1765956959086,0.02082,87218.0,87216.0,0.22931369]
[1765956959309,0.0114646,87225.0,87220.0,0.01146526]
[1765956959467,0.26157613,87226.0,87220.0,0.01146526]
[1765956959677,0.26157613,87226.0,87210.0,0.11602885]
[1765956959678,0.26157613,87226.0,87198.0,0.03055347]
[1765956959680,0.04819,87199.0,87198.0,0.03055347]
[1765956959856,0.08416,87175.0,87172.0,0.03055347]
[1765956960055,0.24090303,87172.0,87170.0,0.03055347]
[1765956960254,0.22943673,87170.0,87169.0,0.11502885]
[1765956960482,0.22943673,87170.0,87161.0,0.25445282]
[1765956960483,0.22944938,87166.0,87164.0,0.11502885]
[1765956960654,0.01147236,87166.0,87164.0,0.11502885]
[1765956960869,0.01147236,87166.0,87164.0,0.11540487]
[1765956961071,0.24092216,87166.0,87164.0,0.11540487]
[1765956961352,0.01147223,87167.0,87164.0,0.11540487]
[1765956961546,0.22943947,87169.0,87164.0,0.12687749]
[1765956961547,0.01147196,87169.0,87164.0,0.12687749]
[1765956961842,0.01247183,87170.0,87165.0,0.01147249]
[1765956962266,0.01147183,87170.0,87166.0,0.01147236]
[1765956962469,0.22942108,87176.0,87166.0,0.01147236]
[1765956962470,0.01147131,87174.0,87171.0,0.0114717]
[1765956962673,0.02082,87181.0,87174.0,0.01147131]
[1765956962836,0.01147025,87182.0,87181.0,0.11502885]
[1765956963071,0.01147144,87173.0,87170.0,0.11502885]
[1765956963246,0.01147144,87173.0,87168.0,0.0184]
[1765956963247,0.24091164,87169.0,87168.0,0.0184]
[1765956964632,0.24091164,87169.0,87168.0,0.01063322]
[1765956964837,0.40785915,87169.0,87168.0,0.01063322]
[1765956965036,0.40785915,87169.0,87164.0,0.00037602]
[1765956965037,0.29793989,87165.0,87164.0,0.00037602]
[1765956965338,0.29793989,87165.0,87142.0,0.01147552]
[1765956965339,0.01147288,87162.0,87154.0,0.01135]
[1765956965566,0.01147315,87160.0,87157.0,0.01147354]
[1765956965764,0.01147288,87162.0,87155.0,0.01062582]
[1765956965765,0.24093344,87161.0,87158.0,0.01062582]
[1765956965966,0.24093344,87161.0,87159.0,0.01062582]
[1765956966315,0.01147302,87161.0,87160.0,0.01062582]
[1765956966515,0.22945511,87164.0,87160.0,0.01062582]
[1765956966516,0.01147249,87165.0,87162.0,0.11502885]
[1765956966838,0.01147183,87170.0,87164.0,0.01147262]
[1765956967053,0.01147157,87172.0,87166.0,0.01147236]
[1765956967161,0.01147157,87172.0,87171.0,0.11502885]
[1765956967768,0.01147157,87172.0,87162.0,0.01147288]
[1765956967769,0.01147157,87172.0,87154.0,0.00011268]
[1765956967770,0.02029,87155.0,87154.0,0.00011268]
[1765956967977,0.02029,87155.0,87154.0,0.01072707]
[1765956968420,0.09212,87155.0,87154.0,0.01072707]
[1765956968620,0.02029,87155.0,87154.0,0.01072707]
[1765956968818,0.24976622,87155.0,87154.0,0.01072707]
[1765956969922,0.01147288,87162.0,87159.0,0.01147328]
[1765956970119,0.22945252,87164.0,87159.0,0.01147328]
[1765956970120,0.01147262,87164.0,87163.0,0.11502885]
[1765956970237,0.01147262,87164.0,87160.0,0.24006928]
[1765956970238,0.01147249,87165.0,87164.0,0.11502885]
[1765956970659,0.22946568,87159.0,87154.0,0.01319949]
[1765956970853,0.22946568,87159.0,87158.0,0.14403147]
[1765956971147,0.22946568,87159.0,87158.0,0.01060262]
[1765956971341,0.22946568,87159.0,87158.0,0.0184]
[1765956971630,0.22946568,87159.0,87154.0,0.00172555]
[1765956971631,0.24976622,87155.0,87154.0,0.00172555]
[1765956971770,0.24976622,87155.0,87154.0,0.03072619]
[1765956971965,0.01147354,87157.0,87154.0,0.03072619]
[1765956972211,0.01147354,87157.0,87155.0,0.01060064]
[1765956972411,0.01147354,87157.0,87156.0,0.01060064]
[1765956972622,0.01147354,87157.0,87128.0,0.0004]
[1765956972624,0.02914,87153.0,87128.0,0.0004]
[1765956972848,0.02914,87153.0,87128.0,0.00051289]
[1765956972849,0.22954469,87129.0,87128.0,0.00051289]
[1765956974471,0.23154469,87129.0,87128.0,0.00051289]
[1765956975228,0.22954469,87129.0,87128.0,0.00051289]
[1765956975426,0.22954469,87129.0,87128.0,0.01895289]
[1765956976528,0.23154469,87129.0,87128.0,0.01895289]
[1765956977000,0.23354469,87129.0,87128.0,0.01895289]
[1765956977734,0.004,87129.0,87128.0,0.08963576]
[1765956978236,0.004,87129.0,87128.0,0.31918309]
[1765956978644,0.002,87129.0,87128.0,0.31918309]
[1765956979020,0.003,87129.0,87128.0,0.31918309]
[1765956979454,0.001,87129.0,87128.0,0.31918309]
[1765956979604,0.001,87129.0,87128.0,0.32975918]
[1765956984016,0.001,87129.0,87128.0,0.27094918]
[1765956984236,0.001,87129.0,87128.0,0.32975918]
[1765956984816,0.01147512,87145.0,87140.0,0.29858319]
[1765956985130,0.22948911,87151.0,87142.0,0.28135573]
[1765956985131,0.01147446,87150.0,87142.0,0.28135573]
[1765956985297,0.01147499,87146.0,87143.0,0.01059685]
[1765956985503,0.22947559,87156.0,87149.0,0.0114746]
[1765956985667,0.22947559,87156.0,87149.0,0.0518446]
[1765956985668,0.2409528,87154.0,87149.0,0.0518446]
[1765956985867,0.0114742,87152.0,87149.0,0.0518446]
[1765956986320,0.0114742,87152.0,87150.0,0.0106088]
[1765956986527,0.01147407,87153.0,87150.0,0.0106088]
[1765956986528,0.01147302,87161.0,87157.0,0.01147354]
[1765956986723,0.01147302,87161.0,87157.0,0.02005287]
[1765956986724,0.01147315,87160.0,87157.0,0.02005287]
[1765956986962,0.01147315,87160.0,87158.0,0.01060775]
[1765956986963,0.22946568,87159.0,87158.0,0.01060775]
[1765956987641,0.01147315,87160.0,87158.0,0.01060775]
[1765956987858,0.22946568,87159.0,87157.0,0.02005287]
[1765956988085,0.22946568,87159.0,87158.0,0.0106179]
[1765956988328,0.23146568,87159.0,87158.0,0.0106179]
[1765956988531,0.002,87159.0,87158.0,0.0106179]
[1765956989290,0.004,87159.0,87158.0,0.0106179]
[1765956989466,0.002,87159.0,87158.0,0.0106179]
[1765956990181,0.002,87159.0,87130.0,0.0114771]
[1765956990182,0.01147644,87135.0,87130.0,0.0114771]
[1765956990391,0.24100091,87137.0,87133.0,0.0114767]
[1765956990646,0.22950752,87144.0,87142.0,0.06907]
[1765956991010,0.01147552,87142.0,87139.0,0.01147591]
[1765956991213,0.01147552,87142.0,87140.0,0.01844]
[1765956991416,0.22948869,87151.0,87140.0,0.02005287]
[1765956991591,0.22949136,87150.0,87145.0,0.01147512]
[1765956991792,0.22948869,87151.0,87140.0,0.02005287]
[1765956991793,0.01147499,87146.0,87141.0,0.2295125]
[1765956991998,0.01147512,87145.0,87141.0,0.24098815]
[1765956992205,0.01147512,87145.0,87141.0,0.24260102]
[1765956992745,0.01147499,87146.0,87142.0,0.01147552]
[1765956992901,0.01147512,87145.0,87141.0,0.01308852]
[1765956993488,0.01147473,87148.0,87141.0,0.01308852]
[1765956993691,0.01147473,87148.0,87141.0,0.00161287]
[1765956993692,0.01147525,87144.0,87141.0,0.00161287]
[1765956994473,0.22950869,87143.0,87141.0,0.00161287]
[1765956995324,0.01147525,87144.0,87141.0,0.00161287]
[1765956995531,0.24098237,87144.0,87142.0,0.01844]
[1765956995756,0.22951028,87143.0,87142.0,0.01844]
[1765956997341,0.23051028,87143.0,87134.0,0.08607976]